bitfinex-derivatives/quotes_BTCF0:USTF0_20241022
["timestamp","ask_amount","ask_price","bid_price","bid_amount"]
[1729564615417,0.007,67615.0,67614.0,0.49394948]
[1729564615621,0.007,67615.0,67614.0,0.65564962]
[1729564615824,0.007,67615.0,67614.0,0.59663545]
[1729564616023,0.007,67615.0,67614.0,0.75834198]
[1729564616227,0.007,67615.0,67614.0,0.59662941]
[1729564616526,0.007,67615.0,67614.0,0.42662941]
[1729564617229,0.007,67615.0,67614.0,0.59662941]
[1729564617429,0.007,67615.0,67614.0,0.49393475]
[1729564617640,0.16207744,67620.0,67619.0,0.073969]
[1729564617937,0.36156,67631.0,67619.0,1.12861655]
[1729564618232,0.5308,67631.0,67627.0,0.073959]
[1729564618530,0.36156,67631.0,67628.0,0.49391875]
[1729564618737,0.3608,67631.0,67628.0,0.65559609]
[1729564619140,0.01421847,67629.0,67628.0,0.65559609]
[1729564619631,0.01621847,67629.0,67628.0,0.65559609]
[1729564620038,0.03021847,67629.0,67628.0,0.65659609]
[1729564620531,0.03021847,67629.0,67628.0,0.49488297]
[1729564621135,0.03021847,67629.0,67628.0,0.48656277]
[1729564621323,0.3608,67638.0,67637.0,0.073949]
[1729564621529,0.3608,67638.0,67637.0,0.49387297]
[1729564621737,0.3608,67638.0,67637.0,0.243949]
[1729564622641,0.3618,67638.0,67637.0,0.005]
[1729564622840,0.436748,67638.0,67637.0,0.018]
[1729564636842,0.51837516,67638.0,67637.0,0.018]
[1729564643554,0.47297148,67638.0,67637.0,0.018]
[1729564643749,0.47297234,67638.0,67637.0,0.018]
[1729564644254,0.11217234,67638.0,67637.0,0.018]
[1729564644454,0.83377234,67638.0,67637.0,0.018]
[1729564644857,0.797548,67638.0,67637.0,0.018]
[1729564647248,0.967548,67638.0,67633.0,0.07356016]
[1729564647453,0.243953,67634.0,67632.0,0.07371405]
[1729564647758,0.073955,67632.0,67631.0,0.07371405]
[1729564647953,0.073955,67632.0,67627.0,0.0878686]
[1729564647954,0.073956,67631.0,67630.0,0.07371405]
[1729564648158,0.243956,67631.0,67630.0,0.18645395]
[1729564648362,0.073957,67630.0,67629.0,0.07371405]
[1729564648558,0.413957,67630.0,67629.0,0.18645395]
[1729564648860,0.413957,67630.0,67629.0,0.1127399]
[1729564649161,0.413957,67630.0,67629.0,0.18645961]
[1729564649551,0.257957,67630.0,67629.0,0.18745961]
[1729564649759,0.257957,67630.0,67629.0,0.1137399]
[1729564650058,0.257957,67630.0,67629.0,0.07471162]
[1729564650450,0.257957,67630.0,67629.0,0.001]
[1729564651158,0.257957,67630.0,67629.0,0.002]
[1729564651159,0.271957,67630.0,67629.0,0.002]
[1729564651751,0.35359679,67630.0,67629.0,0.002]
[1729564651953,0.51528869,67630.0,67629.0,0.002]
[1729564652149,0.68528869,67630.0,67629.0,0.002]
[1729564652457,0.68528869,67630.0,67585.0,0.07397]
[1729564652458,0.17,67615.0,67604.0,0.12036]
[1729564652657,0.17,67615.0,67607.0,0.073982]
[1729564652658,0.17,67611.0,67607.0,0.073982]
[1729564653258,0.17,67611.0,67609.0,0.07398]
[1729564654958,0.184,67611.0,67609.0,0.07398]
[1729564655161,0.198,67611.0,67609.0,0.07398]
[1729564655465,0.271978,67611.0,67607.0,0.02603678]
[1729564655761,0.271978,67611.0,67607.0,0.10001778]
[1729564655966,0.271978,67611.0,67596.0,0.073994]
[1729564655967,0.073986,67604.0,67596.0,0.073994]
[1729564656159,0.64101727,67604.0,67596.0,0.073994]
[1729564656364,0.64101727,67604.0,67597.0,0.073993]
[1729564656561,0.47101727,67604.0,67591.0,0.17]
[1729564656759,0.39703127,67604.0,67603.0,0.07620522]
[1729564656957,0.56703127,67604.0,67603.0,0.07620522]
[1729564657167,0.58003127,67604.0,67603.0,0.07620522]
[1729564657364,0.5438,67604.0,67603.0,0.07620522]
[1729564657564,0.013,67604.0,67603.0,0.07620522]
[1729564657961,0.183,67604.0,67603.0,0.07620522]
[1729564658673,0.197,67604.0,67603.0,0.07620522]
[1729564659863,0.3608,67612.0,67603.0,0.6741889]
[1729564660066,0.434777,67612.0,67611.0,0.10301647]
[1729564660260,0.434777,67612.0,67611.0,0.2500143]
[1729564661174,0.617777,67612.0,67611.0,0.2500143]
[1729564661768,0.631777,67612.0,67611.0,0.2510143]
[1729564661970,0.631777,67612.0,67611.0,0.11376269]
[1729564662681,0.44372,67611.0,67599.0,0.10301647]
[1729564662857,0.8916,67600.0,67595.0,0.11773311]
[1729564663172,0.17,67596.0,67593.0,0.10301233]
[1729564663465,0.5308,67594.0,67592.0,0.10301233]
[1729564663867,0.3608,67594.0,67593.0,0.13720832]
[1729564664074,0.5308,67594.0,67593.0,0.13720832]
[1729564665071,0.17,67594.0,67593.0,0.13720832]
[1729564665957,0.18,67594.0,67593.0,0.13720832]
[1729564666166,0.018,67594.0,67593.0,0.13720832]
[1729564666364,0.018,67594.0,67592.0,0.074998]
[1729564666564,0.018,67594.0,67593.0,0.17]
[1729564666974,0.019,67594.0,67593.0,0.171]
[1729564667278,0.019,67594.0,67593.0,0.001]
[1729564667766,0.009,67594.0,67593.0,0.001]
[1729564667971,0.018,67594.0,67593.0,0.61484]
[1729564668658,0.3608,67600.0,67593.0,0.75153076]
[1729564668860,0.3608,67600.0,67599.0,0.17]
[1729564669063,0.3608,67600.0,67599.0,0.13669076]
[1729564669367,0.5308,67600.0,67599.0,0.13669076]
[1729564669969,0.5308,67600.0,67593.0,0.17]
[1729564669970,0.073996,67594.0,67593.0,0.001]
[1729564670171,0.434796,67594.0,67593.0,0.001]
[1729564670468,0.604796,67594.0,67593.0,0.001]
[1729564670864,0.604796,67594.0,67593.0,0.002]
[1729564671063,0.604796,67594.0,67593.0,0.001]
[1729564671573,0.613796,67594.0,67593.0,0.001]
[1729564672868,0.5398,67594.0,67585.0,0.00221902]
[1729564673175,0.5308,67586.0,67585.0,0.00221902]
[1729564674280,0.5308,67586.0,67585.0,0.00421902]
[1729564674776,0.30895549,67586.0,67585.0,0.00321902]
[1729564675081,0.31895549,67586.0,67585.0,0.00421902]
[1729564675275,0.48895549,67586.0,67585.0,0.002]
[1729564675778,0.49295549,67586.0,67585.0,0.002]
[1729564677480,0.32295549,67586.0,67585.0,0.002]
[1729564678084,0.49295549,67586.0,67585.0,0.002]
[1729564679481,0.074014,67578.0,67565.0,0.0587804]
[1729564679780,1.10683549,67586.0,67563.0,0.00222012]
[1729564679781,0.17,67566.0,67563.0,0.00222012]
[1729564679975,0.17,67566.0,67562.0,0.074031]
[1729564680171,0.5308,67569.0,67562.0,0.074031]
[1729564680578,0.5308,67569.0,67565.0,0.01]
[1729564681384,0.001,67566.0,67565.0,0.01]
[1729564681889,0.3618,67569.0,67565.0,0.01]
[1729564682184,0.001,67569.0,67566.0,0.72903686]
[1729564682384,0.001,67569.0,67567.0,0.59664144]
[1729564682580,0.001,67569.0,67568.0,0.59664144]
[1729564682980,0.001,67569.0,67568.0,0.4119693]
[1729564683187,0.001,67569.0,67568.0,0.59460949]
[1729564685390,0.074022,67571.0,67568.0,0.59541324]
[1729564685579,0.074022,67571.0,67569.0,0.59368454]
[1729564685780,0.074022,67571.0,67570.0,0.59368454]
[1729564689492,0.074022,67571.0,67570.0,0.19489479]
[1729564689493,0.244022,67571.0,67570.0,0.19489479]
[1729564689693,0.244022,67571.0,67570.0,0.09188337]
[1729564689991,0.074022,67571.0,67570.0,0.08835876]
[1729564690494,0.074022,67571.0,67555.0,0.13244326]
[1729564690495,0.074022,67571.0,67569.0,0.08835876]
[1729564690689,0.17,67570.0,67569.0,0.08835876]
[1729564690882,0.17,67570.0,67562.0,0.10307098]
[1729564691087,0.5308,67573.0,67569.0,0.08833761]
[1729564691282,0.013,67571.0,67569.0,0.17]
[1729564691495,0.013,67571.0,67570.0,0.26169488]
[1729564691693,0.025,67571.0,67570.0,0.1596239]
[1729564691888,0.012,67571.0,67570.0,0.1596239]
[1729564692693,0.024,67571.0,67570.0,0.27742625]
[1729564692883,0.023,67571.0,67570.0,0.27642625]
[1729564693490,0.023,67571.0,67570.0,0.1586239]
[1729564693995,0.013,67571.0,67570.0,0.27642259]
[1729564694192,0.013,67571.0,67570.0,0.1586239]
[1729564694690,0.025,67571.0,67570.0,0.1596239]
[1729564697093,0.025,67571.0,67570.0,0.07467983]
[1729564697494,0.025,67571.0,67570.0,0.001]
[1729564697693,0.025,67571.0,67570.0,0.07469712]
[1729564698393,0.025,67571.0,67570.0,0.001]
[1729564701197,0.025,67571.0,67570.0,0.0894158]
[1729564702999,0.025,67571.0,67570.0,0.001]
[1729564703191,0.025,67571.0,67570.0,0.0894158]
[1729564703403,0.025,67571.0,67570.0,0.001]
[1729564703901,0.025,67571.0,67570.0,0.0894158]
[1729564704303,0.025,67571.0,67570.0,0.001]
[1729564704496,0.025,67571.0,67570.0,0.20224126]
[1729564704695,0.099022,67571.0,67570.0,0.20224126]
[1729564704888,0.06198138,67571.0,67570.0,0.11382567]
[1729564705095,0.49647606,67573.0,67570.0,0.40895658]
[1729564705303,0.49647606,67573.0,67572.0,0.11818234]
[1729564705604,0.49647606,67573.0,67572.0,0.40795658]
[1729564706293,0.49947606,67573.0,67572.0,0.40795658]
[1729564706509,0.57349606,67573.0,67572.0,0.40795658]
[1729564706992,0.58749606,67573.0,67572.0,0.40795658]
[1729564707391,0.58749606,67573.0,67572.0,0.40895658]
[1729564710594,0.58749606,67573.0,67572.0,0.25039416]
[1729564712215,0.58749606,67573.0,67572.0,0.001]
[1729564712513,0.51347606,67573.0,67572.0,0.001]
[1729564714414,0.51347606,67573.0,67572.0,0.06016362]
[1729564716815,0.51347606,67573.0,67572.0,0.06016928]
[1729564717508,0.51347606,67573.0,67572.0,0.001]
[1729564720123,0.40976324,67573.0,67572.0,0.5877497]
[1729564721019,0.40976324,67573.0,67572.0,0.58783442]
[1729564721816,0.187,67573.0,67572.0,0.58783442]
[1729564723316,0.017,67573.0,67572.0,0.58783442]
[1729564723619,0.017,67573.0,67572.0,0.73461611]
[1729564724013,0.017,67573.0,67572.0,0.58783442]
[1729564724223,0.017,67573.0,67572.0,0.73586145]
[1729564724420,0.017,67573.0,67572.0,0.73007751]
[1729564724724,0.017,67573.0,67572.0,0.90007751]
[1729564725020,0.017,67573.0,67572.0,0.73007751]
[1729564725224,0.53046452,67578.0,67572.0,0.73007751]
[1729564725417,0.53046452,67578.0,67576.0,0.13321802]
[1729564725418,0.52962452,67578.0,67576.0,0.13321802]
[1729564725620,0.19627087,67578.0,67577.0,0.58105048]
[1729564725820,0.19627087,67578.0,67577.0,0.7142685]
[1729564726121,0.3608,67584.0,67577.0,0.94113252]
[1729564726320,0.3608,67584.0,67581.0,0.13321802]
[1729564726521,0.3608,67584.0,67582.0,0.40331181]
[1729564726726,0.00222008,67585.0,67578.0,0.00116]
[1729564726727,0.00222008,67585.0,67583.0,0.94060203]
[1729564726913,0.00222008,67585.0,67584.0,0.57980203]
[1729564727115,0.00222008,67585.0,67582.0,0.0739371]
[1729564727418,0.00222008,67585.0,67584.0,0.3608]
[1729564728006,0.00222008,67585.0,67582.0,0.004]
[1729564728212,0.00222008,67585.0,67584.0,0.05909108]
[1729564728426,0.00222008,67585.0,67584.0,0.3608]
[1729564729019,0.00222008,67585.0,67584.0,0.3748]
[1729564729416,0.00322008,67585.0,67584.0,0.43386788]
[1729564729921,0.00222008,67585.0,67584.0,0.43386788]
[1729564730127,0.00322008,67585.0,67584.0,0.44786788]
[1729564730815,0.00322008,67585.0,67584.0,0.3888]
[1729564731011,0.00322008,67585.0,67584.0,0.028]
[1729564732427,0.00322008,67585.0,67584.0,0.07227053]
[1729564733912,0.60802608,67585.0,67584.0,0.028]
[1729564735316,0.60802608,67585.0,67584.0,0.13987435]
[1729564737115,0.60802608,67585.0,67573.0,0.38797521]
[1729564737116,0.074013,67579.0,67577.0,0.10351194]
[1729564737317,0.074017,67575.0,67574.0,0.10351194]
[1729564737618,0.074018,67574.0,67573.0,0.10351194]
[1729564737824,0.244018,67574.0,67573.0,0.25629321]
[1729564738019,0.244018,67574.0,67573.0,0.25629266]
[1729564738219,0.17,67574.0,67572.0,0.10351194]
[1729564738526,0.3089456,67578.0,67572.0,0.10351194]
[1729564738527,0.244019,67573.0,67572.0,0.10351194]
[1729564738714,0.244019,67573.0,67572.0,0.25587784]
[1729564739818,0.256019,67573.0,67572.0,0.25587784]
[1729564740116,0.256019,67573.0,67572.0,0.1523659]
[1729564740323,0.257019,67573.0,67572.0,0.1523659]
[1729564740726,0.257019,67573.0,67572.0,0.25571892]
[1729564740940,0.257019,67573.0,67572.0,0.25671892]
[1729564741618,0.271019,67573.0,67572.0,0.25671892]
[1729564741927,0.271019,67573.0,67572.0,0.10435302]
[1729564742322,0.271019,67573.0,67572.0,0.001]
[1729564742626,0.271019,67573.0,67572.0,0.0452971]
[1729564744327,0.29829487,67573.0,67572.0,0.0452971]
[1729564744523,0.29829487,67573.0,67572.0,0.001]
[1729564745035,0.12829487,67573.0,67572.0,0.001]
[1729564749227,0.08384582,67573.0,67572.0,0.13194116]
[1729564749428,0.05427587,67573.0,67572.0,0.13194116]
[1729564749731,0.12829487,67573.0,67572.0,0.13194116]
[1729564749934,0.091254,67573.0,67572.0,0.13194116]
[1729564750121,0.03939699,67573.0,67572.0,0.13194116]
[1729564752029,0.03939699,67573.0,67572.0,0.24087244]
[1729564752729,0.06613846,67573.0,67572.0,0.24087244]
[1729564755433,0.06613846,67573.0,67572.0,0.23979961]
[1729564756338,0.06613846,67573.0,67572.0,0.19857005]
[1729564756527,0.06613846,67573.0,67572.0,0.198567]
[1729564756929,0.51009846,67573.0,67572.0,0.10994333]
[1729564757530,0.074023,67570.0,67569.0,0.07386002]
[1729564757728,0.074024,67569.0,67568.0,0.07386002]
[1729564757925,0.074025,67568.0,67567.0,0.07386002]
[1729564758229,0.074035,67559.0,67554.0,0.3608]
[1729564758430,0.244035,67559.0,67554.0,0.36188]
[1729564758628,0.244035,67559.0,67558.0,0.13118212]
[1729564759346,0.17,67559.0,67554.0,0.3608]
[1729564759546,0.074038,67556.0,67555.0,0.12898149]
[1729564759730,0.074038,67556.0,67548.0,0.22165238]
[1729564759731,0.074042,67553.0,67548.0,0.10335302]
[1729564760045,0.3608,67556.0,67549.0,0.1291937]
[1729564760340,0.3608,67556.0,67550.0,0.1291937]
[1729564760640,0.074043,67552.0,67551.0,0.1291937]
[1729564760852,0.244043,67552.0,67551.0,0.1291937]
[1729564761741,0.244043,67552.0,67551.0,0.12869823]
[1729564762044,0.17,67552.0,67551.0,0.12869823]
[1729564763239,0.172,67552.0,67551.0,0.12869823]
[1729564763441,0.174,67552.0,67551.0,0.12869823]
[1729564764341,0.174,67552.0,67548.0,0.074046]
[1729564764545,0.17,67549.0,67548.0,0.074046]
[1729564765046,0.17,67549.0,67547.0,0.3608]
[1729564765047,0.074047,67548.0,67547.0,0.3608]
[1729564765940,0.074047,67548.0,67541.0,0.074054]
[1729564766238,0.002,67552.0,67542.0,0.12878167]
[1729564766449,0.17,67544.0,67543.0,0.12876975]
[1729564766740,0.17,67544.0,67541.0,0.074054]
[1729564767043,0.17,67544.0,67542.0,0.12882413]
[1729564767239,0.17,67544.0,67538.0,0.3608]
[1729564767442,0.074052,67543.0,67542.0,0.006]
[1729564768035,0.3608,67554.0,67542.0,0.07378131]
[1729564768351,0.074045,67550.0,67549.0,0.04426881]
[1729564768543,0.074045,67550.0,67546.0,0.05902508]
[1729564768544,0.34,67550.0,67546.0,0.05902508]
[1729564768842,0.414048,67547.0,67546.0,0.05902508]
[1729564769047,0.414048,67547.0,67542.0,0.012]
[1729564769048,0.074052,67543.0,67542.0,0.006]
[1729564769344,0.074052,67543.0,67541.0,0.05901294]
[1729564769345,0.7008,67543.0,67541.0,0.05901294]
[1729564769544,0.07407,67527.0,67526.0,0.04422665]
[1729564769744,0.07407,67527.0,67515.0,0.3608]
[1729564769745,0.7008,67527.0,67515.0,0.3608]
[1729564770049,0.7008,67527.0,67507.0,0.074091]
[1729564770050,0.17,67516.0,67507.0,0.074091]
[1729564770234,0.5308,67527.0,67504.0,0.00222207]
[1729564770235,0.17,67510.0,67504.0,0.00222207]
[1729564770639,0.17,67510.0,67506.0,0.074093]
[1729564771036,0.17,67510.0,67507.0,0.074092]
[1729564772243,0.17,67510.0,67504.0,0.00222207]
[1729564772549,0.1018552,67510.0,67509.0,0.46815736]
[1729564772933,0.1018552,67510.0,67509.0,0.10735736]
[1729564773247,0.1078552,67510.0,67509.0,0.001]
[1729564774941,0.012,67510.0,67509.0,0.001]
[1729564775146,0.5308,67521.0,67509.0,0.6154]
[1729564775343,0.17,67510.0,67509.0,0.001]
[1729564775543,0.17,67510.0,67509.0,0.10752499]
[1729564776442,0.17,67510.0,67509.0,0.07509]
[1729564776647,0.17,67510.0,67509.0,0.18160499]
[1729564777044,0.17,67510.0,67509.0,0.18060499]
[1729564777245,0.177,67510.0,67509.0,0.18160499]
[1729564778245,0.177,67510.0,67509.0,0.10751499]
[1729564778466,0.251089,67510.0,67509.0,0.001]
[1729564778754,0.177,67510.0,67509.0,0.001]
[1729564779054,0.177,67510.0,67509.0,0.35160419]
[1729564779055,0.007,67510.0,67509.0,0.35160419]
[1729564780138,0.244085,67514.0,67509.0,0.35162741]
[1729564780139,0.17,67514.0,67509.0,0.35162741]
[1729564780339,0.17,67514.0,67509.0,0.171]
[1729564780737,0.17,67514.0,67510.0,0.10609754]
[1729564780953,0.17,67514.0,67509.0,0.171]
[1729564781237,0.244085,67514.0,67511.0,0.074087]
[1729564781745,0.074085,67514.0,67511.0,0.074087]
[1729564782447,0.008,67514.0,67512.0,0.074086]
[1729564782652,0.008,67514.0,67513.0,0.074085]
[1729564782947,0.01,67514.0,67513.0,0.074085]
[1729564783343,0.17,67531.0,67521.0,0.074076]
[1729564783640,0.3608,67533.0,67521.0,0.074076]
[1729564783641,0.24407,67527.0,67522.0,0.244075]
[1729564784147,0.24407,67527.0,67522.0,0.074075]
[1729564784750,0.3608,67533.0,67526.0,0.17]
[1729564785044,0.17,67531.0,67528.0,0.074068]
[1729564785251,0.17,67531.0,67529.0,0.10568035]
[1729564785450,0.17,67531.0,67530.0,0.10545975]
[1729564785748,0.17,67531.0,67530.0,0.10550717]
[1729564786952,0.171,67531.0,67530.0,0.11950717]
[1729564787650,0.171,67531.0,67530.0,0.028]
[1729564789038,0.171,67531.0,67530.0,0.014]
[1729564789247,0.171,67531.0,67530.0,0.102067]
[1729564789443,0.171,67531.0,67530.0,0.028]
[1729564789643,0.074076,67521.0,67514.0,0.434884]
[1729564789847,0.17,67515.0,67514.0,0.434884]
[1729564792063,0.178,67515.0,67514.0,0.434884]
[1729564792558,0.186,67515.0,67514.0,0.435884]
[1729564792949,0.016,67515.0,67514.0,0.435884]
[1729564794663,0.1637034,67518.0,67515.0,0.074083]
[1729564794957,0.1637034,67518.0,67516.0,0.2335439]
[1729564795148,0.074079,67519.0,67518.0,0.07408]
[1729564795456,0.074079,67519.0,67518.0,0.3076239]
[1729564796260,0.086079,67519.0,67518.0,0.3076239]
[1729564796654,0.086079,67519.0,67518.0,0.41097692]
[1729564796855,0.02394162,67519.0,67518.0,0.55873087]
[1729564797061,0.09802062,67519.0,67518.0,0.48465087]
[1729564797560,0.09802062,67519.0,67518.0,0.38059266]
[1729564799449,0.09802062,67519.0,67518.0,0.2345439]
[1729564802256,0.02394162,67519.0,67518.0,0.2345439]
[1729564802562,0.02394162,67519.0,67518.0,0.07508]
[1729564802863,0.02394162,67519.0,67518.0,0.25450452]
[1729564803051,0.02394162,67519.0,67518.0,0.18057165]
[1729564803456,0.02394162,67519.0,67518.0,0.18045472]
[1729564809456,0.02394162,67519.0,67518.0,0.45197712]
[1729564809661,0.02394162,67519.0,67518.0,0.40958454]
[1729564809958,0.17,67522.0,67518.0,0.452032]
[1729564810158,0.17,67522.0,67520.0,0.10356504]
[1729564810159,0.11810599,67522.0,67520.0,0.10356504]
[1729564810359,0.11810599,67522.0,67521.0,0.23101864]
[1729564811163,0.11810599,67522.0,67521.0,0.33458368]
[1729564811569,0.12510599,67522.0,67521.0,0.33458368]
[1729564811961,0.11810599,67522.0,67521.0,0.33458368]
[1729564812166,0.12510599,67522.0,67521.0,0.33558368]
[1729564812562,0.12510599,67522.0,67521.0,0.33658368]
[1729564813269,0.12510599,67522.0,67521.0,0.48081036]
[1729564813662,0.12510599,67522.0,67521.0,0.45132132]
[1729564813973,0.007,67522.0,67521.0,0.45132132]
[1729564814566,0.07407,67527.0,67522.0,0.074075]
[1729564814767,0.07407,67527.0,67526.0,0.10359497]
[1729564814966,0.24407,67527.0,67526.0,0.33361449]
[1729564815267,0.24407,67527.0,67526.0,0.23001952]
[1729564815870,0.24507,67527.0,67526.0,0.24401952]
[1729564817469,0.24507,67527.0,67526.0,0.014]
[1729564818178,0.24507,67527.0,67526.0,0.028]
[1729564820372,0.18507,67527.0,67526.0,0.028]
[1729564824474,0.18507,67527.0,67526.0,0.13250533]
[1729564824780,0.18507,67527.0,67526.0,0.25707168]
[1729564826571,0.18507,67527.0,67526.0,0.36066665]
[1729564826782,0.18507,67527.0,67526.0,0.25707168]
[1729564827281,0.18507,67527.0,67526.0,0.36066665]
[1729564827483,0.18507,67527.0,67526.0,0.50536424]
[1729564829283,0.18507,67527.0,67526.0,0.25707168]
[1729564829480,0.18507,67527.0,67526.0,0.36066665]
[1729564829784,0.18507,67527.0,67526.0,0.50533047]
[1729564830286,0.18507,67527.0,67526.0,0.36066665]
[1729564830586,0.18507,67527.0,67526.0,0.25707168]
[1729564831082,0.02653997,67532.0,67526.0,0.62995973]
[1729564831287,0.3608,67533.0,67530.0,0.10364019]
[1729564831288,0.184066,67531.0,67530.0,0.10364019]
[1729564831486,0.184066,67531.0,67530.0,0.47720948]
[1729564831688,0.184066,67531.0,67530.0,0.47717883]
[1729564832582,0.184066,67531.0,67530.0,0.49117883]
[1729564832789,0.22034557,67531.0,67530.0,0.014]
[1729564833984,0.11034557,67531.0,67530.0,0.028]
[1729564834176,0.22034557,67531.0,67530.0,0.028]
[1729564835283,0.184066,67531.0,67530.0,0.028]
[1729564836682,0.02688109,67533.0,67530.0,0.138]
[1729564836880,0.00222211,67541.0,67537.0,0.074059]
[1729564837081,0.00222211,67541.0,67540.0,0.11]
[1729564838088,0.00222211,67541.0,67538.0,0.11]
[1729564838686,0.00222211,67541.0,67540.0,0.014]
[1729564839080,0.00222211,67541.0,67538.0,0.11]
[1729564839284,0.00222211,67541.0,67538.0,0.124]
[1729564839695,0.00222211,67541.0,67539.0,0.10351662]
[1729564839882,0.00222211,67541.0,67540.0,0.10351662]
[1729564840781,0.00222211,67541.0,67540.0,0.11751662]
[1729564841279,0.00222211,67541.0,67540.0,0.19133914]
[1729564842789,0.00222211,67541.0,67540.0,0.20533914]
[1729564843179,0.00222211,67541.0,67540.0,0.10182252]
[1729564843680,0.00222211,67541.0,67540.0,0.028]
[1729564844779,0.00222211,67541.0,67540.0,0.24143226]
[1729564845885,0.00222211,67541.0,67540.0,0.3152211]
[1729564846089,0.00222211,67541.0,67540.0,0.31522272]
[1729564846292,0.00222211,67541.0,67540.0,0.24143226]
[1729564847106,0.00222211,67541.0,67540.0,0.24147307]
[1729564847586,0.00222211,67541.0,67540.0,0.31552907]
[1729564849284,0.00222211,67541.0,67540.0,0.24147307]
[1729564849689,0.11,67542.0,67540.0,0.13147307]
[1729564849896,0.11,67542.0,67540.0,0.10175465]
[1729564850393,0.11,67542.0,67541.0,0.17723816]
[1729564850785,0.11,67542.0,67541.0,0.07375465]
[1729564850992,0.11,67542.0,67541.0,0.17717583]
[1729564851186,0.11,67542.0,67541.0,0.07375465]
[1729564851601,0.11,67542.0,67541.0,0.08775465]
[1729564852202,0.11,67542.0,67541.0,0.10175465]
[1729564853294,0.11,67542.0,67541.0,0.20520075]
[1729564853509,0.11,67542.0,67541.0,0.028]
[1729564855091,0.11,67542.0,67539.0,0.0194169]
[1729564855092,0.43162624,67542.0,67539.0,0.0194169]
[1729564855286,0.54162624,67542.0,67539.0,0.0194169]
[1729564856293,0.43162624,67542.0,67541.0,0.11]
[1729564856693,0.43262624,67542.0,67541.0,0.11]
[1729564856991,0.54262624,67542.0,67539.0,0.028]
[1729564857194,0.54262624,67542.0,67539.0,0.138]
[1729564857706,0.54262624,67542.0,67539.0,0.124]
[1729564857707,0.46088961,67542.0,67539.0,0.124]
[1729564857889,0.46188961,67542.0,67541.0,0.028]
[1729564858593,0.46188961,67542.0,67541.0,0.014]
[1729564859390,0.46088961,67542.0,67541.0,0.007]
[1729564859699,0.46188961,67542.0,67541.0,0.007]
[1729564860201,0.46188961,67542.0,67541.0,0.021]
[1729564860696,0.35188961,67542.0,67541.0,0.021]
[1729564861023,0.43362456,67542.0,67539.0,0.36184]
[1729564861192,0.43362456,67542.0,67541.0,0.11]
[1729564863292,0.002,67542.0,67541.0,0.11]
[1729564864191,0.002,67542.0,67539.0,0.3608]
[1729564864192,0.112,67542.0,67539.0,0.3608]
[1729564864491,0.112,67542.0,67540.0,0.11]
[1729564865296,0.111,67542.0,67540.0,0.11]
[1729564865602,0.112,67542.0,67540.0,0.11]
[1729564867205,0.112,67542.0,67540.0,0.125]
[1729564870306,0.112,67542.0,67541.0,0.3027416]
[1729564870605,0.002,67542.0,67541.0,0.3027416]
[1729564871299,0.002,67542.0,67541.0,0.2286866]
[1729564871505,0.002,67542.0,67541.0,0.2416866]
[1729564873005,0.001,67542.0,67541.0,0.2416866]
[1729564873204,0.001,67542.0,67541.0,0.2436866]
[1729564873205,0.002,67542.0,67541.0,0.2436866]
[1729564876802,0.10029786,67544.0,67541.0,0.2436866]
[1729564877004,0.10029786,67544.0,67542.0,0.2286866]
[1729564877202,0.10029786,67544.0,67543.0,0.2286866]
[1729564878313,0.10229786,67544.0,67543.0,0.2286866]
[1729564879709,0.10129786,67544.0,67543.0,0.2286866]
[1729564880004,0.10229786,67544.0,67543.0,0.2316866]
[1729564880214,0.10229786,67544.0,67543.0,0.2446866]
[1729564883814,0.002,67544.0,67543.0,0.2091323]
[1729564884019,0.074042,67553.0,67543.0,0.24449122]
[1729564884315,0.074038,67557.0,67552.0,0.11]
[1729564884510,0.074038,67557.0,67556.0,0.11]
[1729564884818,0.184038,67557.0,67556.0,0.18394451]
[1729564885315,0.22030472,67557.0,67556.0,0.11]
[1729564885704,0.11030472,67557.0,67556.0,0.11]
[1729564885909,0.22030472,67557.0,67554.0,0.11]
[1729564886113,0.03626672,67556.0,67554.0,0.11]
[1729564886314,0.11030582,67555.0,67554.0,0.11]
[1729564887511,0.11030582,67555.0,67554.0,0.114]
[1729564888411,0.03626682,67555.0,67554.0,0.114]
[1729564890620,0.03626588,67555.0,67554.0,0.114]
[1729564891523,0.074037,67557.0,67554.0,0.114]
[1729564891725,0.03626633,67556.0,67554.0,0.114]
[1729564891924,0.074037,67557.0,67554.0,0.114]
[1729564892126,0.03626633,67556.0,67554.0,0.114]
[1729564892425,0.03626633,67555.0,67554.0,0.114]
[1729564892725,0.03626633,67556.0,67554.0,0.114]
[1729564893023,0.03626633,67555.0,67554.0,0.114]
[1729564893218,0.03626633,67555.0,67554.0,0.112]
[1729564893414,0.184037,67557.0,67554.0,0.111]
[1729564893617,0.184037,67557.0,67554.0,0.112]
[1729564894117,0.184037,67557.0,67554.0,0.116]
[1729564894722,0.184037,67557.0,67554.0,0.114]
[1729564896022,0.184037,67557.0,67554.0,0.112]
[1729564897520,0.184037,67557.0,67554.0,0.002]
[1729564900221,0.184037,67557.0,67554.0,0.07594451]
[1729564900528,0.184037,67557.0,67556.0,0.04435659]
[1729564901931,0.11,67557.0,67555.0,0.05914212]
[1729564902230,0.02852274,67558.0,67556.0,0.11]
[1729564902418,0.00222112,67558.0,67557.0,0.074037]
[1729564904333,0.00322112,67558.0,67557.0,0.102037]
[1729564905837,0.00322112,67558.0,67557.0,0.212037]
[1729564907828,0.07725712,67558.0,67557.0,0.028]
[1729564908436,0.15897648,67558.0,67557.0,0.028]
[1729564908923,0.158977,67558.0,67557.0,0.028]
[1729564911846,0.084941,67558.0,67557.0,0.028]
[1729564913928,0.08494011,67558.0,67557.0,0.028]
[1729564915138,0.08494011,67558.0,67554.0,0.01944251]
[1729564915440,0.11,67557.0,67556.0,0.08878393]